[Event "Early-Titled-Tuesday-Blitz-February-13-2024"]
[Site "Chess.com"]
[Date "2024.02.13"]
[Round "10"]
[White "Actuary44"]
[Black "ChessQueen"]
[Result "0-1"]
[WhiteElo "2515"]
[BlackElo "2691"]
[TimeControl "180+1"]
[EndTime "9:59:24 PST"]
[Termination "ChessQueen won by resignation"]

1. e4 {[%clk 0:03:00.9]} 1... c6 {[%clk 0:03:00.2]} 2. d4 {[%clk 0:03:01]} 2...
d5 {[%clk 0:03:00.6]} 3. Nc3 {[%clk 0:03:01.9]} 3... dxe4 {[%clk 0:03:00.9]} 4.
Nxe4 {[%clk 0:03:02.8]} 4... Nf6 {[%clk 0:03:01.4]} 5. Ng3 {[%clk 0:03:02.1]}
5... g6 {[%clk 0:03:00.7]} 6. Bc4 {[%clk 0:03:00.6]} 6... Bg7 {[%clk 0:03:00.7]}
7. Nf3 {[%clk 0:02:59.6]} 7... O-O {[%clk 0:02:59.6]} 8. Bg5 {[%clk 0:02:59.5]}
8... Nbd7 {[%clk 0:02:59]} 9. Qd2 {[%clk 0:02:58.5]} 9... Nb6 {[%clk 0:02:58.8]}
10. Bb3 {[%clk 0:02:58.2]} 10... a5 {[%clk 0:02:55.6]} 11. a4 {[%clk 0:02:56.9]}
11... Re8 {[%clk 0:02:50.9]} 12. Bh6 {[%clk 0:02:51.4]} 12... Bh8 {[%clk
0:02:50.6]} 13. h4 {[%clk 0:02:49.6]} 13... Nbd5 {[%clk 0:02:24.3]} 14. h5
{[%clk 0:02:47.2]} 14... e5 {[%clk 0:02:20.4]} 15. dxe5 {[%clk 0:02:31.9]} 15...
Ng4 {[%clk 0:02:17.7]} 16. hxg6 {[%clk 0:02:30.7]} 16... fxg6 {[%clk 0:02:09.5]}
17. O-O-O {[%clk 0:02:17.8]} 17... Qe7 {[%clk 0:01:51.2]} 18. Bg5 {[%clk
0:01:39.1]} 18... Qf7 {[%clk 0:01:51]} 19. Bf6 {[%clk 0:01:29.8]} 19... Ngxf6
{[%clk 0:01:46.1]} 20. Ng5 {[%clk 0:01:22.3]} 20... Qg7 {[%clk 0:01:43.7]} 21.
exf6 {[%clk 0:01:11.9]} 21... Qxf6 {[%clk 0:01:44.6]} 22. c3 {[%clk 0:01:09.1]}
22... h5 {[%clk 0:01:33.2]} 23. Bxd5+ {[%clk 0:00:59.9]} 23... cxd5 {[%clk
0:01:34.1]} 24. Qxd5+ {[%clk 0:01:00.1]} 24... Be6 {[%clk 0:01:34.4]} 25. Nxe6
{[%clk 0:00:58.9]} 25... Qxe6 {[%clk 0:01:34.8]} 26. Qxe6+ {[%clk 0:00:47.1]}
26... Rxe6 {[%clk 0:01:35.7]} 27. Rhe1 {[%clk 0:00:45.8]} 27... Rxe1 {[%clk
0:01:29.7]} 28. Rxe1 {[%clk 0:00:46.7]} 28... Kf7 {[%clk 0:01:30]} 29. Ne4
{[%clk 0:00:45.7]} 29... Rd8 {[%clk 0:01:20.6]} 30. Rd1 {[%clk 0:00:45.8]} 30...
Rxd1+ {[%clk 0:01:17.6]} 31. Kxd1 {[%clk 0:00:46.7]} 31... Be5 {[%clk
0:01:15.6]} 32. Ke2 {[%clk 0:00:42.3]} 32... b6 {[%clk 0:01:10.2]} 33. Kd3
{[%clk 0:00:41.7]} 33... Ke6 {[%clk 0:01:10.7]} 34. Kc4 {[%clk 0:00:41.6]} 34...
Bc7 {[%clk 0:01:05.3]} 35. b4 {[%clk 0:00:41.7]} 35... Ke5 {[%clk 0:01:03.9]}
36. Ng5 {[%clk 0:00:29.2]} 36... Kf5 {[%clk 0:01:00.6]} 37. Nf3 {[%clk
0:00:27.7]} 37... g5 {[%clk 0:01:00.7]} 38. Nd4+ {[%clk 0:00:26.1]} 38... Ke5
{[%clk 0:00:56.7]} 39. Kb5 {[%clk 0:00:18.5]} 39... h4 {[%clk 0:00:53]} 40. Kc6
{[%clk 0:00:16.9]} 40... Bd8 {[%clk 0:00:52.3]} 41. Nf3+ {[%clk 0:00:13.3]}
41... Ke4 {[%clk 0:00:46.2]} 42. bxa5 {[%clk 0:00:10.8]} 42... bxa5 {[%clk
0:00:46.2]} 43. c4 {[%clk 0:00:11.1]} 43... g4 {[%clk 0:00:45]} 44. Ne1 {[%clk
0:00:09.6]} 44... h3 {[%clk 0:00:42.9]} 45. f3+ {[%clk 0:00:09.4]} 45... Ke3
{[%clk 0:00:39.5]} 46. gxh3 {[%clk 0:00:05.8]} 46... gxh3 {[%clk 0:00:39.7]} 47.
Nc2+ {[%clk 0:00:04.5]} 47... Kf2 {[%clk 0:00:38.5]} 48. Nd4 {[%clk 0:00:01.7]}
48... h2 {[%clk 0:00:38.4]} 49. Ne6 {[%clk 0:00:02.2]} 49... Bh4 {[%clk
0:00:36.2]} 50. Nf4 {[%clk 0:00:01.3]} 50... h1=Q {[%clk 0:00:36]} 51. Nd3+
{[%clk 0:00:01.9]} 51... Ke3 {[%clk 0:00:35.9]} 52. Kb5 {[%clk 0:00:02.8]} 52...
Kxd3 {[%clk 0:00:35.7]} 0-1

[Event "Early-Titled-Tuesday-Blitz-February-13-2024"]
[Site "Chess.com"]
[Date "2024.02.13"]
[Round "10"]
[White "eagleclaw07"]
[Black "krasavetc"]
[Result "0-1"]
[WhiteElo "2799"]
[BlackElo "2651"]
[TimeControl "180+1"]
[EndTime "9:59:25 PST"]
[Termination "krasavetc won by resignation"]

1. e4 {[%clk 0:03:00.9]} 1... c5 {[%clk 0:02:35.8]} 2. Nf3 {[%clk 0:03:01.8]}
2... Nc6 {[%clk 0:02:35.3]} 3. d4 {[%clk 0:03:01.5]} 3... cxd4 {[%clk
0:02:36.2]} 4. Nxd4 {[%clk 0:03:02.2]} 4... Nf6 {[%clk 0:02:35.6]} 5. Nc3 {[%clk
0:03:02]} 5... e5 {[%clk 0:02:33.5]} 6. Ndb5 {[%clk 0:02:58.4]} 6... d6 {[%clk
0:02:33.7]} 7. Bg5 {[%clk 0:02:58.1]} 7... a6 {[%clk 0:02:34.1]} 8. Na3 {[%clk
0:02:58.6]} 8... b5 {[%clk 0:02:34.7]} 9. Nd5 {[%clk 0:02:58.2]} 9... Be7 {[%clk
0:02:35]} 10. Bxf6 {[%clk 0:02:58.6]} 10... Bxf6 {[%clk 0:02:35.4]} 11. c3
{[%clk 0:02:58.9]} 11... Rb8 {[%clk 0:02:34.7]} 12. Nc2 {[%clk 0:02:59.1]} 12...
Bg5 {[%clk 0:02:34.9]} 13. h4 {[%clk 0:02:58.5]} 13... Bxh4 {[%clk 0:02:31.8]}
14. g3 {[%clk 0:02:57.6]} 14... Bg5 {[%clk 0:02:29.2]} 15. Bh3 {[%clk
0:02:57.6]} 15... Be6 {[%clk 0:02:27.8]} 16. Kf1 {[%clk 0:02:51.9]} 16... O-O
{[%clk 0:02:24.9]} 17. Kg2 {[%clk 0:02:51.4]} 17... g6 {[%clk 0:02:22.1]} 18. f4
{[%clk 0:02:41.5]} 18... exf4 {[%clk 0:02:19.3]} 19. gxf4 {[%clk 0:02:41.8]}
19... Bf6 {[%clk 0:01:52.2]} 20. Nce3 {[%clk 0:02:29.3]} 20... Bg7 {[%clk
0:01:48.2]} 21. Qf3 {[%clk 0:02:06.4]} 21... b4 {[%clk 0:01:45.5]} 22. c4 {[%clk
0:01:41.5]} 22... Nd4 {[%clk 0:01:41.6]} 23. Qg3 {[%clk 0:01:27.8]} 23... b3
{[%clk 0:01:18.9]} 24. a3 {[%clk 0:01:21.4]} 24... Nc2 {[%clk 0:01:14.6]} 25.
Rab1 {[%clk 0:01:09.1]} 25... Nxe3+ {[%clk 0:01:06.2]} 26. Qxe3 {[%clk
0:01:08.2]} 26... Re8 {[%clk 0:00:57.4]} 27. Rhd1 {[%clk 0:01:02.4]} 27... Qh4
{[%clk 0:00:50.8]} 28. Bxe6 {[%clk 0:00:48.2]} 28... fxe6 {[%clk 0:00:50.8]} 29.
Nb4 {[%clk 0:00:46.5]} 29... Rf8 {[%clk 0:00:47.6]} 30. Nd3 {[%clk 0:00:42.3]}
30... Bh6 {[%clk 0:00:45.6]} 31. Rf1 {[%clk 0:00:39.4]} 31... e5 {[%clk
0:00:43.7]} 32. Qg3 {[%clk 0:00:34.5]} 32... Qxg3+ {[%clk 0:00:17.1]} 33. Kxg3
{[%clk 0:00:35.4]} 33... exf4+ {[%clk 0:00:17.8]} 34. Nxf4 {[%clk 0:00:36]}
34... Rbc8 {[%clk 0:00:17.6]} 35. Rbc1 {[%clk 0:00:29.5]} 35... Rf7 {[%clk
0:00:17.7]} 36. Rc3 {[%clk 0:00:14.9]} 36... Rcf8 {[%clk 0:00:16.7]} 37. Rcf3
{[%clk 0:00:15.1]} 37... Rxf4 {[%clk 0:00:16.4]} 38. Rxf4 {[%clk 0:00:16]} 38...
Rxf4 {[%clk 0:00:16.9]} 39. Rxf4 {[%clk 0:00:16.9]} 39... Bxf4+ {[%clk
0:00:17.7]} 40. Kxf4 {[%clk 0:00:17.8]} 40... Kf7 {[%clk 0:00:18.3]} 41. e5
{[%clk 0:00:11.5]} 41... Ke6 {[%clk 0:00:18.3]} 42. exd6 {[%clk 0:00:10.7]}
42... Kxd6 {[%clk 0:00:19.2]} 43. Kg5 {[%clk 0:00:07.2]} 43... Kc5 {[%clk
0:00:19.3]} 0-1

[Event "Early-Titled-Tuesday-Blitz-February-13-2024"]
[Site "Chess.com"]
[Date "2024.02.13"]
[Round "10"]
[White "ChessSkool"]
[Black "MarcoRiehle"]
[Result "0-1"]
[WhiteElo "2708"]
[BlackElo "2867"]
[TimeControl "180+1"]
[EndTime "9:59:27 PST"]
[Termination "MarcoRiehle won on time"]

1. d4 {[%clk 0:03:00.9]} 1... d5 {[%clk 0:02:59.7]} 2. Nf3 {[%clk 0:02:57.4]}
2... Nf6 {[%clk 0:02:59.5]} 3. c3 {[%clk 0:02:56.9]} 3... e6 {[%clk 0:02:58.1]}
4. Bf4 {[%clk 0:02:56.3]} 4... c5 {[%clk 0:02:57.4]} 5. e3 {[%clk 0:02:56.3]}
5... Bd6 {[%clk 0:02:57.5]} 6. Nbd2 {[%clk 0:02:51.2]} 6... cxd4 {[%clk
0:02:55.7]} 7. Bxd6 {[%clk 0:02:50.2]} 7... dxe3 {[%clk 0:02:52]} 8. Ba3 {[%clk
0:02:33.2]} 8... exd2+ {[%clk 0:02:51.7]} 9. Qxd2 {[%clk 0:02:34.1]} 9... Nc6
{[%clk 0:02:51.8]} 10. Qg5 {[%clk 0:02:25.6]} 10... g6 {[%clk 0:02:44.5]} 11.
Bd3 {[%clk 0:02:08.3]} 11... Ne4 {[%clk 0:02:36.1]} 12. Qh6 {[%clk 0:01:43.9]}
12... Qf6 {[%clk 0:02:34.6]} 13. O-O {[%clk 0:01:39.1]} 13... Bd7 {[%clk
0:02:34.1]} 14. Rfe1 {[%clk 0:01:26.4]} 14... O-O-O {[%clk 0:02:31.6]} 15. Bxe4
{[%clk 0:01:24.1]} 15... dxe4 {[%clk 0:02:27.6]} 16. Rxe4 {[%clk 0:01:25]} 16...
e5 {[%clk 0:02:28.3]} 17. Rae1 {[%clk 0:01:12.6]} 17... Bf5 {[%clk 0:02:23.5]}
18. R4e2 {[%clk 0:01:10]} 18... Bg4 {[%clk 0:02:15.8]} 19. Re3 {[%clk
0:01:07.8]} 19... Bxf3 {[%clk 0:02:15.2]} 20. Rxf3 {[%clk 0:01:07.9]} 20... Qe6
{[%clk 0:02:15.8]} 21. b3 {[%clk 0:00:51.8]} 21... f5 {[%clk 0:02:14.9]} 22. h3
{[%clk 0:00:49.3]} 22... e4 {[%clk 0:02:13.4]} 23. Rfe3 {[%clk 0:00:48.7]} 23...
Ne5 {[%clk 0:02:03.1]} 24. c4 {[%clk 0:00:24]} 24... Nd3 {[%clk 0:01:57.4]} 25.
R1e2 {[%clk 0:00:24.6]} 25... Rd7 {[%clk 0:01:55.6]} 26. Kh2 {[%clk 0:00:05]}
26... Rhd8 {[%clk 0:01:50]} 27. g3 {[%clk 0:00:05]} 27... Ne5 {[%clk 0:01:48.2]}
28. Bb2 {[%clk 0:00:04.7]} 28... Rd2 {[%clk 0:01:46.9]} 29. Bxe5 {[%clk
0:00:04.3]} 29... Qxe5 {[%clk 0:01:47.8]} 30. Rxe4 {[%clk 0:00:04.2]} 30... Qb2
{[%clk 0:01:32.1]} 31. Rxd2 {[%clk 0:00:04.5]} 31... Qxd2 {[%clk 0:01:32.6]} 32.
Qxd2 {[%clk 0:00:04.1]} 32... Rxd2 {[%clk 0:01:33.5]} 33. Re8+ {[%clk
0:00:04.8]} 33... Kd7 {[%clk 0:01:32.7]} 34. Rh8 {[%clk 0:00:05.1]} 34... Rxf2+
{[%clk 0:01:33.2]} 35. Kg1 {[%clk 0:00:05.8]} 35... Rxa2 {[%clk 0:01:33.8]} 36.
Rxh7+ {[%clk 0:00:06.6]} 36... Kc6 {[%clk 0:01:32.7]} 37. Rg7 {[%clk 0:00:07.2]}
37... Rb2 {[%clk 0:01:33]} 38. Rxg6+ {[%clk 0:00:07.8]} 38... Kc5 {[%clk
0:01:33.6]} 39. h4 {[%clk 0:00:04.9]} 39... Rb1+ {[%clk 0:01:32.2]} 40. Kg2
{[%clk 0:00:05.2]} 40... Rb2+ {[%clk 0:01:32.8]} 41. Kh3 {[%clk 0:00:04.9]}
41... Rxb3 {[%clk 0:01:33.3]} 42. Rg5 {[%clk 0:00:04.5]} 42... Rb1 {[%clk
0:01:29.5]} 43. Rxf5+ {[%clk 0:00:04.6]} 43... Kxc4 {[%clk 0:01:30.1]} 44. h5
{[%clk 0:00:04.4]} 44... b5 {[%clk 0:01:26.9]} 45. Rf4+ {[%clk 0:00:04.5]} 45...
Kc3 {[%clk 0:01:25.1]} 46. Rh4 {[%clk 0:00:04.6]} 46... Rd1 {[%clk 0:01:23.1]}
47. h6 {[%clk 0:00:04.6]} 47... Rd8 {[%clk 0:01:23.6]} 48. g4 {[%clk 0:00:03.4]}
48... b4 {[%clk 0:01:22.5]} 49. g5 {[%clk 0:00:04]} 49... b3 {[%clk 0:01:22.6]}
50. Kg3 {[%clk 0:00:04.1]} 50... b2 {[%clk 0:01:12.2]} 51. Rh1 {[%clk
0:00:04.4]} 51... a5 {[%clk 0:01:12.6]} 52. h7 {[%clk 0:00:04.8]} 52... a4
{[%clk 0:01:09.1]} 53. g6 {[%clk 0:00:05.4]} 53... a3 {[%clk 0:01:06.2]} 54. g7
{[%clk 0:00:05.9]} 54... Rd3+ {[%clk 0:01:05.5]} 55. Kf4 {[%clk 0:00:04.8]}
55... Rd4+ {[%clk 0:01:03.8]} 56. Kf5 {[%clk 0:00:04.2]} 56... a2 {[%clk
0:01:02.9]} 57. g8=Q {[%clk 0:00:03.9]} 57... b1=Q+ {[%clk 0:01:03.4]} 58. Rxb1
{[%clk 0:00:03.5]} 58... axb1=Q+ {[%clk 0:01:04.3]} 59. Kf6 {[%clk 0:00:02.7]}
59... Qf1+ {[%clk 0:01:03.2]} 60. Kg5 {[%clk 0:00:01.3]} 60... Qg2+ {[%clk
0:01:00.2]} 61. Kf5 {[%clk 0:00:01.5]} 61... Qf3+ {[%clk 0:00:59.5]} 62. Ke5
{[%clk 0:00:01.1]} 62... Qe3+ {[%clk 0:00:58.9]} 0-1

[Event "Early-Titled-Tuesday-Blitz-February-13-2024"]
[Site "Chess.com"]
[Date "2024.02.13"]
[Round "10"]
[White "KuzubovYuriy"]
[Black "FairChess_on_YouTube"]
[Result "1-0"]
[WhiteElo "2966"]
[BlackElo "3078"]
[TimeControl "180+1"]
[EndTime "9:59:28 PST"]
[Termination "KuzubovYuriy won on time"]

1. d4 {[%clk 0:03:00.9]} 1... d5 {[%clk 0:02:56]} 2. c4 {[%clk 0:03:00.7]} 2...
e6 {[%clk 0:02:56.1]} 3. Nf3 {[%clk 0:03:00.9]} 3... Nf6 {[%clk 0:02:55.7]} 4.
Nc3 {[%clk 0:03:01.1]} 4... a6 {[%clk 0:02:55.8]} 5. cxd5 {[%clk 0:03:00.9]}
5... exd5 {[%clk 0:02:55.8]} 6. Bg5 {[%clk 0:03:01.5]} 6... Be6 {[%clk
0:02:56.1]} 7. Bxf6 {[%clk 0:03:02]} 7... Qxf6 {[%clk 0:02:56]} 8. Qb3 {[%clk
0:03:02.7]} 8... Ra7 {[%clk 0:02:55.4]} 9. g3 {[%clk 0:03:00.1]} 9... Qd8 {[%clk
0:02:54]} 10. h4 {[%clk 0:03:00]} 10... Be7 {[%clk 0:02:40.2]} 11. Bh3 {[%clk
0:02:58.7]} 11... Bxh3 {[%clk 0:02:38.3]} 12. Rxh3 {[%clk 0:02:58.8]} 12... c6
{[%clk 0:02:38.9]} 13. Kf1 {[%clk 0:02:57.1]} 13... Nd7 {[%clk 0:02:34.5]} 14.
e4 {[%clk 0:02:53.4]} 14... dxe4 {[%clk 0:02:31.9]} 15. Nxe4 {[%clk 0:02:54.3]}
15... O-O {[%clk 0:02:29.3]} 16. Re1 {[%clk 0:02:48.3]} 16... Nf6 {[%clk
0:02:20.8]} 17. Kg2 {[%clk 0:02:37.2]} 17... h6 {[%clk 0:02:09.4]} 18. Rhh1
{[%clk 0:02:32.1]} 18... Qd5 {[%clk 0:01:48.3]} 19. Nxf6+ {[%clk 0:02:27.3]}
19... Bxf6 {[%clk 0:01:48.6]} 20. Qxd5 {[%clk 0:02:28]} 20... cxd5 {[%clk
0:01:49.2]} 21. Rc1 {[%clk 0:02:28.4]} 21... Re8 {[%clk 0:01:45.5]} 22. Rc2
{[%clk 0:02:10.4]} 22... Raa8 {[%clk 0:01:21.2]} 23. Rc7 {[%clk 0:02:04.5]}
23... Re2 {[%clk 0:01:12.9]} 24. Rxb7 {[%clk 0:02:02.2]} 24... Rc8 {[%clk
0:01:13.1]} 25. Re1 {[%clk 0:01:49.7]} 25... Rxe1 {[%clk 0:01:09.9]} 26. Nxe1
{[%clk 0:01:49.7]} 26... Bxd4 {[%clk 0:01:10.5]} 27. Kf1 {[%clk 0:01:43.9]}
27... h5 {[%clk 0:00:51.7]} 28. Ke2 {[%clk 0:01:41.9]} 28... Re8+ {[%clk
0:00:51.5]} 29. Kf1 {[%clk 0:01:42.2]} 29... Rc8 {[%clk 0:00:52.1]} 30. Rb4
{[%clk 0:01:37.4]} 30... Bc5 {[%clk 0:00:44.8]} 31. Ra4 {[%clk 0:01:35]} 31...
Rc6 {[%clk 0:00:42.3]} 32. Rf4 {[%clk 0:01:21.2]} 32... g6 {[%clk 0:00:31.5]}
33. Ke2 {[%clk 0:01:20.9]} 33... Re6+ {[%clk 0:00:27.6]} 34. Kd1 {[%clk
0:01:04.3]} 34... Re4 {[%clk 0:00:27.6]} 35. Rf3 {[%clk 0:01:04.2]} 35... f5
{[%clk 0:00:21.8]} 36. Nd3 {[%clk 0:01:02.7]} 36... Bd6 {[%clk 0:00:16.6]} 37.
Kd2 {[%clk 0:00:59]} 37... Kf7 {[%clk 0:00:16.6]} 38. Re3 {[%clk 0:00:57.4]}
38... Bc7 {[%clk 0:00:13.4]} 39. Re2 {[%clk 0:00:55.5]} 39... Ba5+ {[%clk
0:00:13.2]} 40. Kd1 {[%clk 0:00:54.6]} 40... Bb6 {[%clk 0:00:13.9]} 41. f3
{[%clk 0:00:52.7]} 41... Rxe2 {[%clk 0:00:11.9]} 42. Kxe2 {[%clk 0:00:52.9]}
42... Bc7 {[%clk 0:00:12.5]} 43. Nf4 {[%clk 0:00:50.5]} 43... g5 {[%clk
0:00:07.5]} 44. hxg5 {[%clk 0:00:41.8]} 44... h4 {[%clk 0:00:07.3]} 45. g6+
{[%clk 0:00:41.3]} 45... Kg8 {[%clk 0:00:03.1]} 46. Nxd5 {[%clk 0:00:37]} 46...
Bxg3 {[%clk 0:00:02.5]} 47. Ne7+ {[%clk 0:00:36.9]} 47... Kg7 {[%clk 0:00:01.6]}
48. Nxf5+ {[%clk 0:00:36.8]} 48... Kxg6 {[%clk 0:00:02.2]} 49. Nxg3 {[%clk
0:00:37.3]} 49... hxg3 {[%clk 0:00:03.1]} 50. Kf1 {[%clk 0:00:37.9]} 50... Kf5
{[%clk 0:00:03.3]} 51. Kg2 {[%clk 0:00:38.5]} 51... Kf4 {[%clk 0:00:04.2]} 52.
b4 {[%clk 0:00:38.3]} 1-0

[Event "Early-Titled-Tuesday-Blitz-February-13-2024"]
[Site "Chess.com"]
[Date "2024.02.13"]
[Round "10"]
[White "stollenmonster"]
[Black "DamianoLew95"]
[Result "0-1"]
[WhiteElo "2881"]
[BlackElo "2740"]
[TimeControl "180+1"]
[EndTime "9:59:28 PST"]
[Termination "DamianoLew95 won by resignation"]

1. e4 {[%clk 0:03:00.9]} 1... c5 {[%clk 0:02:59.8]} 2. Nf3 {[%clk 0:03:00.7]}
2... d6 {[%clk 0:02:59.9]} 3. d4 {[%clk 0:03:00.6]} 3... cxd4 {[%clk 0:03:00.8]}
4. Nxd4 {[%clk 0:03:00.6]} 4... Nf6 {[%clk 0:03:01.6]} 5. Nc3 {[%clk 0:03:01.1]}
5... Nc6 {[%clk 0:03:02.1]} 6. Nde2 {[%clk 0:03:01.4]} 6... e6 {[%clk
0:02:52.6]} 7. g3 {[%clk 0:03:01.6]} 7... d5 {[%clk 0:02:52.4]} 8. exd5 {[%clk
0:03:00.9]} 8... Nxd5 {[%clk 0:02:50.4]} 9. Bg2 {[%clk 0:02:58.9]} 9... Nxc3
{[%clk 0:02:45.2]} 10. Qxd8+ {[%clk 0:02:58.2]} 10... Kxd8 {[%clk 0:02:43.3]}
11. Nxc3 {[%clk 0:02:58.8]} 11... f6 {[%clk 0:02:40.6]} 12. Be3 {[%clk
0:02:55.8]} 12... a6 {[%clk 0:02:33.1]} 13. Bb6+ {[%clk 0:02:48.8]} 13... Ke8
{[%clk 0:02:28.9]} 14. O-O-O {[%clk 0:02:47.1]} 14... Bb4 {[%clk 0:02:19.5]} 15.
Ne4 {[%clk 0:02:45.6]} 15... e5 {[%clk 0:02:04.6]} 16. Nd6+ {[%clk 0:02:44.4]}
16... Bxd6 {[%clk 0:02:03.4]} 17. Rxd6 {[%clk 0:02:43.8]} 17... Bf5 {[%clk
0:01:51.9]} 18. f4 {[%clk 0:02:08.1]} 18... Rc8 {[%clk 0:01:30]} 19. Re1 {[%clk
0:02:01.1]} 19... Nb4 {[%clk 0:01:10.4]} 20. c3 {[%clk 0:01:48.9]} 20... Nd3+
{[%clk 0:01:02.1]} 21. Rxd3 {[%clk 0:01:48.9]} 21... Bxd3 {[%clk 0:01:03]} 22.
fxe5 {[%clk 0:01:49.4]} 22... Kf7 {[%clk 0:00:56.7]} 23. Bd5+ {[%clk 0:01:44.3]}
23... Kg6 {[%clk 0:00:54.2]} 24. e6 {[%clk 0:01:38.4]} 24... Bc4 {[%clk
0:00:54.2]} 25. Be4+ {[%clk 0:01:29.5]} 25... f5 {[%clk 0:00:54.2]} 26. Bg2
{[%clk 0:01:15.9]} 26... Rhe8 {[%clk 0:00:46.9]} 27. e7 {[%clk 0:01:06.5]} 27...
Kf7 {[%clk 0:00:44.6]} 28. Bd8 {[%clk 0:00:49.2]} 28... Bxa2 {[%clk 0:00:23.1]}
29. Bxb7 {[%clk 0:00:47.3]} 29... Rb8 {[%clk 0:00:21.7]} 30. Bxa6 {[%clk
0:00:46.6]} 30... Bb3 {[%clk 0:00:20.6]} 31. c4 {[%clk 0:00:37]} 31... Rbxd8
{[%clk 0:00:19.6]} 32. exd8=Q {[%clk 0:00:36.6]} 32... Rxe1+ {[%clk 0:00:19.5]}
33. Kd2 {[%clk 0:00:33.3]} 33... Rd1+ {[%clk 0:00:20.4]} 34. Kc3 {[%clk
0:00:33.7]} 34... Rxd8 {[%clk 0:00:21.3]} 35. Kxb3 {[%clk 0:00:34]} 35... g5
{[%clk 0:00:21.4]} 36. Kc3 {[%clk 0:00:33.5]} 36... f4 {[%clk 0:00:21.3]} 37.
gxf4 {[%clk 0:00:34.4]} 37... gxf4 {[%clk 0:00:22.2]} 38. Bb7 {[%clk 0:00:33.8]}
38... Kf6 {[%clk 0:00:21.4]} 39. b4 {[%clk 0:00:34.4]} 39... Re8 {[%clk
0:00:18.7]} 40. c5 {[%clk 0:00:33.4]} 40... f3 {[%clk 0:00:19.1]} 41. Kd4 {[%clk
0:00:27.4]} 41... f2 {[%clk 0:00:18]} 42. Ba6 {[%clk 0:00:24.3]} 42... Ra8
{[%clk 0:00:17.3]} 43. Bc4 {[%clk 0:00:21.1]} 43... Ra1 {[%clk 0:00:16.2]} 44.
c6 {[%clk 0:00:21]} 44... Ke7 {[%clk 0:00:15.7]} 45. b5 {[%clk 0:00:18.2]} 45...
Kd6 {[%clk 0:00:15.1]} 46. h4 {[%clk 0:00:16.4]} 46... f1=Q {[%clk 0:00:15]} 47.
Bxf1 {[%clk 0:00:17]} 47... Rxf1 {[%clk 0:00:15.8]} 0-1

[Event "Early-Titled-Tuesday-Blitz-February-13-2024"]
[Site "Chess.com"]
[Date "2024.02.13"]
[Round "10"]
[White "yaguigor"]
[Black "Chernov_Alexander_A"]
[Result "1-0"]
[WhiteElo "2647"]
[BlackElo "2290"]
[TimeControl "180+1"]
[EndTime "9:59:29 PST"]
[Termination "yaguigor won on time"]

1. Nf3 {[%clk 0:02:59.1]} 1... d5 {[%clk 0:02:58.9]} 2. d4 {[%clk 0:02:57.2]}
2... c5 {[%clk 0:02:56.6]} 3. c4 {[%clk 0:02:56.1]} 3... e6 {[%clk 0:02:54]} 4.
cxd5 {[%clk 0:02:55.5]} 4... exd5 {[%clk 0:02:54.1]} 5. Nc3 {[%clk 0:02:54.9]}
5... Nc6 {[%clk 0:02:53.6]} 6. g3 {[%clk 0:02:50.2]} 6... Nf6 {[%clk 0:02:52.6]}
7. Bg2 {[%clk 0:02:49.8]} 7... Be7 {[%clk 0:02:52.6]} 8. O-O {[%clk 0:02:49.1]}
8... O-O {[%clk 0:02:52.4]} 9. Bg5 {[%clk 0:02:45]} 9... cxd4 {[%clk 0:02:51]}
10. Nxd4 {[%clk 0:02:44.3]} 10... h6 {[%clk 0:02:51.1]} 11. Be3 {[%clk
0:02:43.7]} 11... Re8 {[%clk 0:02:49]} 12. Qb3 {[%clk 0:02:21.3]} 12... Na5
{[%clk 0:02:46.8]} 13. Qc2 {[%clk 0:02:20.7]} 13... Bg4 {[%clk 0:02:44.9]} 14.
h3 {[%clk 0:02:18.1]} 14... Bh5 {[%clk 0:02:44.3]} 15. Rad1 {[%clk 0:02:14.9]}
15... Rc8 {[%clk 0:02:33.9]} 16. Nf5 {[%clk 0:02:03.3]} 16... Bb4 {[%clk
0:02:33.5]} 17. g4 {[%clk 0:01:38.4]} 17... Bg6 {[%clk 0:02:24.4]} 18. Bd4
{[%clk 0:01:31.6]} 18... h5 {[%clk 0:01:23.8]} 19. Qa4 {[%clk 0:00:37.9]} 19...
Bxc3 {[%clk 0:00:53]} 20. Bxc3 {[%clk 0:00:35.7]} 20... Nc6 {[%clk 0:00:43]} 21.
Nxg7 {[%clk 0:00:32.1]} 21... Rxe2 {[%clk 0:00:27.8]} 22. Nxh5 {[%clk
0:00:26.4]} 22... Bxh5 {[%clk 0:00:23.1]} 23. gxh5 {[%clk 0:00:26.3]} 23... Ne4
{[%clk 0:00:21.3]} 24. Bxe4 {[%clk 0:00:22.1]} 24... Rxe4 {[%clk 0:00:19.8]} 25.
Qxe4 {[%clk 0:00:20.5]} 25... dxe4 {[%clk 0:00:19.7]} 26. Rxd8+ {[%clk
0:00:20.6]} 26... Rxd8 {[%clk 0:00:19.6]} 27. Kh2 {[%clk 0:00:20]} 27... Kh7
{[%clk 0:00:18.6]} 28. Rg1 {[%clk 0:00:19.2]} 28... Kh6 {[%clk 0:00:18.5]} 29.
Rg7 {[%clk 0:00:17.4]} 29... Rd7 {[%clk 0:00:18.3]} 30. Kg3 {[%clk 0:00:17]}
30... Kxh5 {[%clk 0:00:18.3]} 31. Kf4 {[%clk 0:00:15]} 31... Ne7 {[%clk
0:00:11.9]} 32. Bf6 {[%clk 0:00:11.4]} 32... Nd5+ {[%clk 0:00:11]} 33. Ke5
{[%clk 0:00:11.2]} 33... Nxf6 {[%clk 0:00:11]} 34. Kxf6 {[%clk 0:00:10.8]} 34...
Rd6+ {[%clk 0:00:07.2]} 35. Kf5 {[%clk 0:00:10.4]} 35... Rd5+ {[%clk 0:00:06.2]}
36. Kxe4 {[%clk 0:00:10.1]} 36... Rd3 {[%clk 0:00:06]} 37. Kxd3 {[%clk
0:00:09.6]} 1-0